Cogmind - Beta 14 @@@ ROGUE MODE // 2024.11.19 @ 15:17:51 Player: Shimmyarah Result: Destroyed by C-35 Carver with Carbide Saw Performance ------------- Evolutions (6) 3000 Regions Visited (8) 1600 Robots Destroyed (17) 85 Value Destroyed (284) 284 Prototype IDs (8) 160 Alien Tech Used (0) 0 Bonus (300) 300 TOTAL SCORE: 5429 Bonus ------- Registered with UFD 300 Cogmind --------- Core Integrity 0/1150 Matter 300/300 Energy 99/100 System Corruption 7% Temperature Cool (0) Movement Core (50) Location -4/Factory Parts ------- > --- POWER (1) -------- (None) > --- PROPULSION (12) -- (None) > --- UTILITY (4) ------ Visual Processing Unit Advanced Signal Interpreter Advanced Melee Analysis Suite > --- WEAPON (2) ------- (None) > --- INVENTORY (5) ---- Neutrino Core Power Amplifier Improved Weapon Cycler Hacking Suite Improved Field Recycling Unit (0) Peak State ------------ > --- POWER ------------ (None) > --- PROPULSION ------- Armored Medium Treads Wheel Compact Wheel Compact Wheel Compact Wheel Compact Wheel Compact Wheel Centrium Wheel Antigrav System Improved Antigrav System Improved Gyrokinetic Inverter > --- UTILITY ---------- Visual Processing Unit Advanced Signal Interpreter Advanced Melee Analysis Suite Advanced Melee Analysis Suite > --- WEAPON ----------- Lance > --- INVENTORY -------- Neutrino Core Power Amplifier Improved Weapon Cycler Improved Field Recycling Unit Datajack [Rating: 64] Favorites ----------- Power Ion Engine Engine Ion Engine Propulsion Light Treads Treads Light Treads Leg Enhanced Flexi-carbon Leg Wheel Wheel Hover Unit Combat Airjet Flight Unit Nuclear Pulse Thruster Utility Enhanced Optical Array Device Seismic Detector Storage Small Storage Unit Processor Enhanced Optical Array Hackware Hacking Suite Protection Scrap Shield Weapon Junk Cannon Energy Gun Small Laser Energy Cannon Beam Cannon Ballistic Gun Assault Rifle Ballistic Cannon Battle Cannon Special Weapon Junk Cannon Slashing Weapon Mining Claw Piercing Weapon Lance Special Melee Weapon Datajack Build | -11 -10 -10 -9 -9 -6 -6 -5 -4 ------- Run | Yrd Mat Sub Rec Scr Fac Ext Fac Fac Slots Evolved 12 | . . . . . 8 . 2 2 Power . | . . . . . . . . . Propulsion 10 | . . . . . 6 . 2 2 Utility 2 | . . . . . 2 . . . Weapon . | . . . . . . . . . Parts Attached 89 | 3 . 15 6 13 13 1 16 22 Power 4 | . . 1 . 2 . . . 1 Engine 4 | . . 1 . 2 . . . 1 Core . | . . . . . . . . . Reactor . | . . . . . . . . . Propulsion 49 | 2 . 4 3 4 7 1 11 17 Treads 12 | . . 2 3 2 3 . 1 1 Leg 6 | . . . . . . . 5 1 Wheel 14 | 2 . 2 . . . . . 10 Hover 10 | . . . . . 2 1 2 5 Flight 7 | . . . . 2 2 . 3 . Utility 18 | 1 . 4 3 3 3 . 2 2 Device 9 | 1 . 4 2 . . . 2 . Storage . | . . . . . . . . . Processor 7 | . . . . 2 3 . . 2 Hackware 1 | . . . . 1 . . . . Protection 1 | . . . 1 . . . . . Artifact . | . . . . . . . . . Weapon 18 | . . 6 . 4 3 . 3 2 Energy Gun 1 | . . . . 1 . . . . Energy Cannon 1 | . . 1 . . . . . . Ballistic Gun 3 | . . 2 . . . . 1 . Ballistic Cannon 1 | . . 1 . . . . . . Launcher . | . . . . . . . . . Special Weapon 3 | . . 2 . 1 . . . . Impact Weapon . | . . . . . . . . . Slashing Weapon 3 | . . . . 1 1 . 1 . Piercing Weapon 1 | . . . . . . . 1 . Special Melee Weapon 5 | . . . . 1 2 . . 2 Unidentified Prototypes 5 | . . . . 1 . . 4 . Parts Lost 48 | . . 4 . . 3 8 13 20 Power 2 | . . 1 . . . 1 . . Propulsion 38 | . . 1 . . 3 6 10 18 Utility 4 | . . 1 . . . 1 2 . Weapon 4 | . . 1 . . . . 1 2 Highest Loss Streak 15 | . . 1 . . 2 8 6 15 To Critical Strikes 1 | . . . . . . . . 1 Average Slot Usage (%) 72 | . 100 98 93 68 73 74 44 57 Engine 11 | . 14 13 14 12 6 6 . 2 Treads 20 | . . 18 25 24 19 13 . 4 Wheel 2 | . 28 8 2 . . . . 15 Hover 1 | . . . . . 7 14 4 9 Flight 2 | . . . . 1 16 13 8 . Device 8 | . 14 13 16 7 . . 3 . Storage 1 | . 14 14 2 . . . . . Processor 11 | . . . . 14 15 20 15 20 Energy Cannon 2 | . . 9 13 . . . . . Ballistic Gun 3 | . 28 10 13 . . . . . Special Weapon 3 | . . 6 . 5 . . . . Peak Build Rating 64 | 8 8 10 11 33 41 39 45 64 Average Rating 17 | 6 7 8 9 15 30 37 35 47 On Entrance 14 | 6 8 8 10 4 18 38 18 21 Naked Turns . | . . . . . . . . . Heaviest Build 30 | 13 13 18 30 21 3 3 3 10 Greatest Support 48 | 20 20 40 40 40 12 3 15 48 Greatest Overweight (x) 6 | . . 1 1 6 . . . . Average Overweight (x) . | . . . . . . . . . Largest Inventory Capacity 8 | 8 8 8 8 5 5 5 5 5 Average Capacity 5 | 8 8 8 5 5 5 5 5 5 Most Carried 8 | 8 8 8 8 5 5 5 5 5 Average Carried 4 | 6 7 7 4 4 4 4 4 4 Final Capacity 8 | 8 8 8 5 5 5 5 5 5 Final Carried 8 | 8 8 8 5 5 5 4 5 5 Class Distribution -------------------- 95% | Mutant Dominant Class ---------------- Mutant | -10/Materials Mutant | -10/Subcaves Mutant | -9/Recycling Mutant | -9/Scraptown Derelict-Mutant | -6/Factory Mutant | -6/Extension Mutant | -5/Factory Mutant | -4/Factory Resources | -11 -10 -10 -9 -9 -6 -6 -5 -4 ----------- Run | Yrd Mat Sub Rec Scr Fac Ext Fac Fac Matter Collected 1020 | 243 . 237 . 215 . . . 325 Remotely . | . . . . . . . . . Salvage Created 724 | 151 . 221 . . . . . 352 Parts 41 | 16 . 9 . . . . . 16 Haulers Intercepted . | . . . . . . . . . Recyclers Shooed 3 | 1 . . . . . . . 2 Parts Field Recycled . | . . . . . . . . . Retrieved Matter . | . . . . . . . . . Parts Self-Destructed 12 | . . 12 . . . . . . Prevented . | . . . . . . . . . Kills | -11 -10 -10 -9 -9 -6 -6 -5 -4 ------- Run | Yrd Mat Sub Rec Scr Fac Ext Fac Fac Combat Hostiles Destroyed 6 | . . 6 . . . . . . Cannons 5 | . . 5 . . . . . . Classes Destroyed 7 | 2 . 4 . . . . . 1 Builder 1 | . . . . . . . . 1 Tunneler 6 | 5 . . . . . . . 1 Recycler 3 | 1 . . . . . . . 2 Turret 1 | . . 1 . . . . . . Swarmer 2 | . . 2 . . . . . . Grunt 2 | . . 2 . . . . . . Subdweller 2 | . . 2 . . . . . . Best Kill Streak 4 | 4 . 2 . . . . . 2 Combat Bots Only 2 | . . 2 . . . . . . Max Kills in Single Turn 1 | 1 . 1 . . . . . 1 Gunslinging . | . . . . . . . . . Exploded . | . . . . . . . . . Melee . | . . . . . . . . . Uniques/NPCs Destroyed . | . . . . . . . . . Combat | -11 -10 -10 -9 -9 -6 -6 -5 -4 -------- Run | Yrd Mat Sub Rec Scr Fac Ext Fac Fac Hostile Shots Fired 609 | . . 66 . . 44 54 162 283 Missed 272 | . . 22 . . 20 23 78 129 Damage Taken 7084 | . . 1009 . . 435 511 1756 3373 Core 2275 | . . 247 . . 18 145 714 1151 Absorbed by Shields . | . . . . . . . . . Core Remaining (%) 52 | 100 . . . 1 . 80 28 . Volleys Fired 51 | 9 . 42 . . . . . . Largest 2 | 2 . 2 . . . . . . Hottest 160 | 40 . 160 . . . . . . Shots Fired 81 | 18 . 63 . . . . . . Gun 29 | 18 . 11 . . . . . . Cannon 32 | . . 32 . . . . . . Launcher . | . . . . . . . . . Special 20 | . . 20 . . . . . . Kinetic 38 | 18 . 20 . . . . . . Thermal 43 | . . 43 . . . . . . Explosive . | . . . . . . . . . Electromagnetic . | . . . . . . . . . Robot Hit Streak 12 | 12 . 6 . . . . . . Robot Miss Streak 3 | 1 . 3 . . . . . . Penetration Max . | . . . . . . . . . Secondary Targets . | . . . . . . . . . Shots Hit Robots 49 | 13 . 27 . . . . 1 8 Core Hits 23 | 7 . 9 . . . . 3 4 Critical Kills 2 | 1 . 1 . . . . . . Critical Parts Destroyed . | . . . . . . . . . Critical Strikes 2 | 1 . 1 . . . . . . Meltdown 1 | . . 1 . . . . . . Destroy 1 | 1 . . . . . . . . Melee Attacks 12 | . . . . . . . 4 8 Impact . | . . . . . . . . . Slashing 4 | . . . . . . . 4 . Piercing 8 | . . . . . . . . 8 Sneak Attacks 4 | . . . . . . . . 4 Combat Hostiles . | . . . . . . . . . Follow-up Attacks . | . . . . . . . . . Damage Inflicted 1325 | 165 . 510 . . 12 . 47 591 Guns 272 | 165 . 107 . . . . . . Cannons 403 | . . 403 . . . . . . Explosions . | . . . . . . . . . Melee 507 | . . . . . . . 22 485 Ramming 143 | . . . . . 12 . 25 106 Kinetic 396 | 165 . 231 . . . . . . Thermal 279 | . . 279 . . . . . . Explosive . | . . . . . . . . . Electromagnetic . | . . . . . . . . . Impact . | . . . . . . . . . Slashing 22 | . . . . . . . 22 . Piercing 485 | . . . . . . . . 485 Highest Corruption 10 | . . 2 2 . . . 10 7 Average Corruption 2 | . . 2 2 . . . 4 3 Corruption Purged . | . . . . . . . . . Corruption Blocked . | . . . . . . . . . Effects 42 | . . 5 17 . . . 15 5 Message Errors 12 | . . 1 7 . . . 2 2 Matter Fused 8 | . . 1 2 . . . 4 1 Heat Flow Errors 4 | . . . 3 . . . . 1 Energy Discharges 4 | . . . 2 . . . 2 . Parts Rejected 1 | . . . . . . . 1 . Data Loss (minor) 4 | . . 1 1 . . . 2 . Data Loss (major) 2 | . . . 1 . . . . 1 Misfires 1 | . . 1 . . . . . . Alerts 3 | . . 1 1 . . . 1 . Misdirections 3 | . . . . . . . 3 . Overload Shots . | . . . . . . . . . Overflow Damage 95 | . . . . . . . . 95 Projectiles . | . . . . . . . . . Explosions . | . . . . . . . . . Melee 95 | . . . . . . . . 95 Knockbacks 2 | . . 1 . . . . . 1 Impact 1 | . . . . . . . . 1 Kinetic 1 | . . 1 . . . . . . Secondary . | . . . . . . . . . Self-Inflicted Damage 65 | . . . . . 6 . 9 50 Shots . | . . . . . . . . . Rammed 28 | . . . . . 2 . 8 18 Targets Rammed 28 | . . . . . 2 . 8 18 Kicked . | . . . . . . . . . Crushed . | . . . . . . . . . Highest Temperature 305 | . . 13 279 . . 305 269 227 Average Temperature 127 | . . 6 124 . . 258 141 119 Received Heat Transfer 940 | . . 132 . . 81 402 60 265 Effects 3 | . . . 3 . . . . . Interference 3 | . . . 3 . . . . . Siege Activations . | . . . . . . . . . Robots Corrupted . | . . . . . . . . . Combat Hostiles . | . . . . . . . . . Parts Fried . | . . . . . . . . . Impact Corruptions . | . . . . . . . . . Robots Melted 1 | . . 1 . . . . . . Combat Hostiles 1 | . . 1 . . . . . . Parts Melted 2 | . . 2 . . . . . . Heat Transferred 592 | . . 592 . . . . . . Parts Sabotaged . | . . . . . . . . . Parts Stolen . | . . . . . . . . . Parts Stripped . | . . . . . . . . . Power Chain Reactions . | . . . . . . . . . Alert | -11 -10 -10 -9 -9 -6 -6 -5 -4 ------- Run | Yrd Mat Sub Rec Scr Fac Ext Fac Fac Peak Influence 364 | 30 25 . 65 . 90 40 210 364 Initial 52 | . 19 . 52 . . 34 2 42 Average 41 | 15 20 . 21 . 32 24 35 154 Maximum Alert Level 1 | . . . . . . . 1 1 Low Security (%) 96 | 100 100 . 100 . 100 100 99 72 Level 1 3 | . . . . . . . . 27 Level 2 . | . . . . . . . . . Level 3 . | . . . . . . . . . Level 4 . | . . . . . . . . . Level 5 . | . . . . . . . . . High Security . | . . . . . . . . . Max Security . | . . . . . . . . . Squads Dispatched 11 | . . . . . 1 . 5 5 Investigation 6 | . . . . . 1 . 1 4 Extermination 2 | . . . . . . . 2 . Reinforcement 3 | . . . . . . . 2 1 Assault . | . . . . . . . . . Garrison . | . . . . . . . . . Intercept . | . . . . . . . . . Searches Triggered . | . . . . . . . . . Construction Impeded . | . . . . . . . . . Haulers Reinforced . | . . . . . . . . . Active Scanning Responses . | . . . . . . . . . Cargo Convoy Interrupts . | . . . . . . . . . Stealth | -11 -10 -10 -9 -9 -6 -6 -5 -4 --------- Run | Yrd Mat Sub Rec Scr Fac Ext Fac Fac Distress Signals 4 | . . . . . . . 1 3 Communications Jammed . | . . . . . . . . . Distress Signals . | . . . . . . . . . Times Spotted 88 | . . 10 . . 8 5 24 41 Peak Tracking Total 17 | . 1 2 . . 4 5 10 17 Tactical Retreats 18 | . . 2 . . 2 . 8 6 Traps | -11 -10 -10 -9 -9 -6 -6 -5 -4 ------- Run | Yrd Mat Sub Rec Scr Fac Ext Fac Fac Traps Triggered 2 | . . . . . . . 1 1 Indirectly . | . . . . . . . . . Trap Hack Attempts . | . . . . . . . . . Triggered . | . . . . . . . . . Disarmed . | . . . . . . . . . Reprogrammed . | . . . . . . . . . Reused . | . . . . . . . . . Traps Extracted . | . . . . . . . . . Installed . | . . . . . . . . . Triggered 2 | . . 2 . . . . . . Machines | -11 -10 -10 -9 -9 -6 -6 -5 -4 ---------- Run | Yrd Mat Sub Rec Scr Fac Ext Fac Fac Machines Disabled 1 | . . 1 . . . . . . Max in Single Turn 1 | . . 1 . . . . . . Machines Repaired . | . . . . . . . . . Machines Dismantled . | . . . . . . . . . Machines Sabotaged . | . . . . . . . . . Overloaded Fab Kills . | . . . . . . . . . Hacking | -11 -10 -10 -9 -9 -6 -6 -5 -4 --------- Run | Yrd Mat Sub Rec Scr Fac Ext Fac Fac Machines Accessed 30 | . 1 . 8 5 2 3 5 6 Terminals 21 | . 1 . 6 . 1 3 5 5 Fabricators 2 | . . . . . 1 . . 1 Repair Stations . | . . . . . . . . . Recycling Units . | . . . . . . . . . Scanalyzers . | . . . . . . . . . Garrison Access . | . . . . . . . . . Total Hacks 110 | . 6 . 41 28 3 5 12 15 Successful 76 | . 3 . 31 28 3 2 4 5 Failed 34 | . 3 . 10 . . 3 8 10 Catastrophic 9 | . . . 2 . . 1 4 2 Database Lockouts . | . . . . . . . . . Manual 26 | . 7 . 6 . . . 7 6 Terminals 53 | . 6 . 16 . 1 5 12 13 Fabricators 4 | . . . . . 2 . . 2 Repair Stations . | . . . . . . . . . Recycling Units . | . . . . . . . . . Scanalyzers . | . . . . . . . . . Garrison Access . | . . . . . . . . . Terminal Hacks 69 | . . . 31 28 1 2 4 3 Record 53 | . . . 24 23 . . 3 3 Part Schematic 2 | . . . 2 . . . . . Robot Analysis 6 | . . . 1 5 . . . . Open Door 3 | . . . . . 1 2 . . Open DSF 1 | . . . . . . . 1 . Terminal Index 1 | . . . 1 . . . . . Registered Components 1 | . . . 1 . . . . . Zone Layout 1 | . . . 1 . . . . . Release Object 1 | . . . 1 . . . . . Fabricator Hacks 4 | . . . . . 2 . . 2 Load Schematic 2 | . . . . . 1 . . 1 Build 2 | . . . . . 1 . . 1 Repair Station Hacks . | . . . . . . . . . Recycling Unit Hacks . | . . . . . . . . . Scanalyzer . | . . . . . . . . . Garrison Access Hacks . | . . . . . . . . . Unauthorized Hacks 3 | . 3 . . . . . . . Terminals 3 | . 3 . . . . . . . Botnet 1 | . 1 . . . . . . . Operators 1 | . 1 . . . . . . . Skim 1 | . 1 . . . . . . . Fabricators . | . . . . . . . . . Repair Stations . | . . . . . . . . . Recycling Units . | . . . . . . . . . Scanalyzers . | . . . . . . . . . Garrison Access . | . . . . . . . . . Data Cores Recovered . | . . . . . . . . . Used . | . . . . . . . . . Hacking Detections 22 | . 1 . 6 . 1 3 5 6 Full Trace Events 5 | . . . . . 1 . 1 3 Feedback Events . | . . . . . . . . . Feedback Blocked . | . . . . . . . . . Robot Schematics Acquired . | . . . . . . . . . Robots Built . | . . . . . . . . . Authchips . | . . . . . . . . . Time . | . . . . . . . . . Total Robot Build Rating . | . . . . . . . . . Part Schematics Acquired 2 | . . . 2 . . . . . Parts Built 4 | . . . . . 2 . . 2 Authchips . | . . . . . . . . . Time 168 | . . . . . 84 . . 84 Total Part Build Rating 16 | . . . . . 8 . . 8 Parts Repaired . | . . . . . . . . . Time . | . . . . . . . . . Parts Recycled . | . . . . . . . . . Recycled Matter . | . . . . . . . . . Retrieved Matter . | . . . . . . . . . Retrieved Components . | . . . . . . . . . Parts Scanalyzed . | . . . . . . . . . Part Schematics Acquired . | . . . . . . . . . Parts Damaged . | . . . . . . . . . Bothacking | -11 -10 -10 -9 -9 -6 -6 -5 -4 ------------ Run | Yrd Mat Sub Rec Scr Fac Ext Fac Fac Used RIF Installer . | . . . . . . . . . Robots Hacked . | . . . . . . . . . Non-combat . | . . . . . . . . . Combat . | . . . . . . . . . Robot Hacks Applied . | . . . . . . . . . Relay Couplers Released . | . . . . . . . . . Fabnet Peak Effective % . | . . . . . . . . . Robots Rewired . | . . . . . . . . . Allies Hacked . | . . . . . . . . . Hacks Repelled . | . . . . . . . . . Allies | -11 -10 -10 -9 -9 -6 -6 -5 -4 -------- Run | Yrd Mat Sub Rec Scr Fac Ext Fac Fac Total Allies 2 | . . . . . . 2 . . Largest Group 2 | . . . . . . 2 . . Highest-Rated Group 56 | . . . . . . 56 . . Highest-Rated Ally 31 | . . . . . . 31 . . Total Orders . | . . . . . . . . . Ally Attacks 11 | . . . . . . 11 . . Total Damage 218 | . . . . . . 218 . . Kills . | . . . . . . . . . Allies Corrupted . | . . . . . . . . . Allies Melted . | . . . . . . . . . Intel | -11 -10 -10 -9 -9 -6 -6 -5 -4 ------- Run | Yrd Mat Sub Rec Scr Fac Ext Fac Fac Robot Analysis Total 6 | . . . 1 5 . . . . Derelict Logs Recovered 3 | . . 1 . 2 . . . . Drone Launches . | . . . . . . . . . Drone Recoveries . | . . . . . . . . . Exploration | -11 -10 -10 -9 -9 -6 -6 -5 -4 ------------- Run | Yrd Mat Sub Rec Scr Fac Ext Fac Fac Turns Passed 10453 | 90 479 639 1390 6206 265 89 870 425 Spaces Moved 7883 | 21 190 368 855 4723 312 175 708 531 Core 1660 | . . . . 179 311 175 609 386 Treads 4432 | . . 199 809 3424 . . . . Legs 16 | 15 . . . . . . 1 . Wheels 500 | 6 190 169 46 . . . . 89 Hover 58 | . . . . . 1 . 1 56 Flight 1217 | . . . . 1120 . . 97 . Fastest Speed 34 | 80 80 80 110 34 50 50 40 50 Average Speed 115 | 108 80 124 159 130 50 50 49 63 Slowest Speed 350 | 120 80 160 240 350 140 50 90 100 Overloaded Moves . | . . . . . . . . . Propulsion Burnouts . | . . . . . . . . . Robots Hopped . | . . . . . . . . . Cave-ins Triggered 1 | . . 1 . . . . . . Exploration Rate (%) 37 | 3 36 20 99 95 14 31 24 19 Regions Visited 8 Branch Regions 4 Pre-discovered Areas . | . . . . . . . . . Known Exits Taken 3 | . . . . . 1 1 1 . Unknown Exits Taken 5 | 1 1 1 1 1 . . . . Scrap Searched 10 | . . . . 10 . . . . Spaces Dug . | . . . . . . . . . Terrain Destroyed 1 | . . 1 . . . . . . Melee . | . . . . . . . . . Projectile 1 | . . 1 . . . . . . AOE . | . . . . . . . . . Terrain Rammed . | . . . . . . . . . Walls Destroyed . | . . . . . . . . . Machines Disabled . | . . . . . . . . . Actions | -11 -10 -10 -9 -9 -6 -6 -5 -4 --------- Run | Yrd Mat Sub Rec Scr Fac Ext Fac Fac Total 9082 | 69 517 441 890 4760 420 175 1212 598 Wait 955 | 31 324 13 15 . 84 . 472 16 Move 7875 | 20 189 367 854 4722 311 174 707 531 Hop . | . . . . . . . . . Pick Up 32 | 4 2 2 4 11 5 . 3 1 Fast Attach 47 | 1 . 3 . 8 2 . 13 20 Attach 25 | . . 2 3 4 10 1 3 2 Detach 9 | . . . 2 . 5 . 1 1 Swap 17 | 2 . 10 3 1 1 . . . Drop 30 | 2 2 2 9 13 . . 1 1 Fire 51 | 9 . 42 . . . . . . Melee 12 | . . . . . . . 4 8 Ram 28 | . . . . . 2 . 8 18 Kick . | . . . . . . . . . Crush . | . . . . . . . . . Escape Stasis . | . . . . . . . . . Rewire 1 | . . . . 1 . . . . Trap . | . . . . . . . . . Miscellaneous . | . . . . . . . . . Route ------- -11/Scrapyard -10/Materials (discovered 3 exits: [*Min x2] / [*Sub]) -10/Subcaves (discovered 2 exits: [*Mat] / *Rec) -9/Recycling (discovered 2 exits: [*Fac] / *Scr) -9/Scraptown (discovered 2 exits: *Fac x2) -6/Factory -6/Extension -5/Factory (discovered 2 exits: *Fac / *Upp) -4/Factory (discovered 1 exit: *Upp) History --------- Turn | Location | Event 1 | -11/Scrapyard | Discovered new exit (range 1) 91 | -11/Scrapyard | Entered Materials 100 | -10/Materials | Discovered new exit (range 15) 153 | -10/Materials | Discovered new exit (range 14) 310 | -10/Materials | Build established: Mutant 548 | -10/Materials | Discovered new exit (range 9) 570 | -10/Materials | Entered Subcaves 573 | -10/Subcaves | Learned 2 Materials zone layouts 631 | -10/Subcaves | Shifting Twisted Machinery released Sub. Power Source 746 | -10/Subcaves | Discovered new exit (range 5) 754 | -10/Subcaves | Shifting Twisted Machinery released Battle Cannon 864 | -10/Subcaves | Crushed by falling debris 864 | -10/Subcaves | Core integrity fell below 50% 864 | -10/Subcaves | Core integrity fell below 20% 1085 | -10/Subcaves | A swath of the cavern ceiling suddenly collapsed 1142 | -10/Subcaves | Discovered new exit (range 12) 1209 | -10/Subcaves | Entered Recycling 1872 | -9/Recycling | Discovered new exit (range 8) 2538 | -9/Recycling | Scanned before Scraplab entrance 2564 | -9/Recycling | Entered Scraplab 2593 | -9/Recycling | Discovered new exit (range 4) 2599 | -9/Recycling | Entered Scraptown 2599 | -9/Scraptown | System corruption cleaned by C-Scrubber 2750 | -9/Scraptown | Visited UFD Registry 2750 | -9/Scraptown | Registered with UFD as "Kinetidrive" 2774 | -9/Scraptown | Visited Shadow of the Wyrm 2854 | -9/Scraptown | Visited TADAMA 2972 | -9/Scraptown | Scanned Subdweller tech in exchange for log data 2979 | -9/Scraptown | Learned Factory trap positions 3023 | -9/Scraptown | Discovered new exit (range 5) 4268 | -9/Scraptown | Heard Great Nut preacher, LISTEN AND RECITE! 4588 | -9/Scraptown | Visited Comm Corps 4716 | -9/Scraptown | Visited Bundlers 4885 | -9/Scraptown | Visited CR-KLE's Repair Center 5611 | -9/Scraptown | Visited Analyses Database 5710 | -9/Scraptown | Visited Junk Repository 5774 | -9/Scraptown | Visited LU-1G1's Boring Crew 5949 | -9/Scraptown | Visited DA-N13 Charitable Foundation 5960 | -9/Scraptown | Found DCF Scrap (28 items) 6091 | -9/Scraptown | Visited Chapter 10 6125 | -9/Scraptown | Visited Junk Cannon Lab 6129 | -9/Scraptown | Found Prototype Special Weapon 6129 | -9/Scraptown | Identified Junk Cannon 6303 | -9/Scraptown | Visited Botcube Research 6332 | -9/Scraptown | Found Lrg. Botcube 6467 | -9/Scraptown | Visited A0-MCA Data Center 6476 | -9/Scraptown | Given a B- rating by A0-MCA 6479 | -9/Scraptown | Found A0-MCA's Component Scanner 6622 | -9/Scraptown | Visited Scrapoid Pod Storage 6727 | -9/Scraptown | Delivered Scrap Shield to a Scientist 6935 | -9/Scraptown | Visited Abandonware Association 6983 | -9/Scraptown | Learned abandonware demo "HACKBUD.EXE" 6983 | -9/Scraptown | Learned abandonware demo "TRNCOAT.EXE" 7244 | -9/Scraptown | Discovered new exit (range 5) 8805 | -9/Scraptown | Entered Factory 8805 | -6/Factory | Evolved 8 slots: Propulsion x6, Utility x2 8806 | -6/Factory | Loaded intel: 86 trap records 8904 | -6/Factory | Fabricated Xenon Bombardment Thruster (x2) 9068 | -6/Factory | Discovered new exit (range 6) 9069 | -6/Factory | Identified exit to Extension 9070 | -6/Factory | Entered Extension 9090 | -6/Extension | Rescued a captive Derelict 9091 | -6/Extension | Rescued a captive Derelict 9147 | -6/Extension | Spotted B-75 Beast 9147 | -6/Extension | Spotted B-75 Beast 9158 | -6/Extension | Discovered new exit (range 3) 9158 | -6/Extension | Identified exit to Factory 9159 | -6/Extension | Entered Factory 9159 | -5/Factory | Evolved 2 slots: Propulsion x2 9160 | -5/Factory | Identified exit to Upper Caves 9186 | -5/Factory | Lost 8 parts (1p6n1u) 9801 | -5/Factory | Lost 6 parts (3n2u1w) 9849 | -5/Factory | System corruption reached 10% 9873 | -5/Factory | Core integrity fell below 50% 9958 | -5/Factory | Lost 3 parts (3n) 10018 | -5/Factory | Discovered new exit (range 17) 10028 | -5/Factory | Lost 4 parts (4n) 10028 | -5/Factory | Identified exit to Factory 10029 | -5/Factory | Entered another Factory area 10029 | -4/Factory | Evolved 2 slots: Propulsion x2 10253 | -4/Factory | Fabricated Xenon Bombardment Thruster? 10343 | -4/Factory | Discovered new exit (range 17) 10352 | -4/Factory | Identified exit to Upper Caves 10377 | -4/Factory | Core integrity fell below 50% 10399 | -4/Factory | Lost 15 parts (14n1w) 10444 | -4/Factory | Core integrity fell below 20% 10454 | -4/Factory | Destroyed by C-35 Carver with Carbide Saw Last Messages --------------- 10422_ Penetrated by Slug. 10422_ Imp. Heavy Treads destroyed. 10423_ Slammed into H-77 Assassin. 10425_ Penetrated by Slug. 10426_ Slug penetrates Wall. 10426_ Myomer Leg destroyed. 10427_ Slammed into T-07 Excavator. 10428_ Slug penetrates Wall. 10428_ Slammed into T-07 Excavator. 10440_ W-44 Eye sends out distress signal. 10440_ Imp. Gyrokinetic Inverter destroyed. 10441_ Cmb. Gravmag System destroyed. 10442_ Slammed into C-35 Carver. 10443_ Penetrated by Slug. 10443_ Adv. Melee Analysis Suite severed. 10445_ Slug penetrates Wall. 10446_ Penetrated by Slug. 10448_ UWXEUE9O&PU%8I=Z|93AHN>AM #AI:/J